[Event "Early-Titled-Tuesday-Blitz-March-05-2024"]
[Site "Chess.com"]
[Date "2024.03.05"]
[Round "1"]
[White "jk13"]
[Black "amylazy"]
[Result "1-0"]
[WhiteElo "2683"]
[BlackElo "2382"]
[TimeControl "180+1"]
[EndTime "8:09:00 PST"]
[Termination "jk13 won by resignation"]

1. e4 {[%clk 0:02:58.5]} 1... c5 {[%clk 0:02:59.3]} 2. Nf3 {[%clk 0:02:53.8]}
2... e6 {[%clk 0:02:58]} 3. c3 {[%clk 0:02:53.7]} 3... d5 {[%clk 0:02:57.1]} 4.
exd5 {[%clk 0:02:51.9]} 4... exd5 {[%clk 0:02:56]} 5. d4 {[%clk 0:02:52.8]} 5...
Nf6 {[%clk 0:02:56.3]} 6. Bb5+ {[%clk 0:02:53.1]} 6... Bd7 {[%clk 0:02:55.4]} 7.
Bxd7+ {[%clk 0:02:52.4]} 7... Nbxd7 {[%clk 0:02:55.4]} 8. O-O {[%clk 0:02:53.3]}
8... Be7 {[%clk 0:02:55.7]} 9. dxc5 {[%clk 0:02:52.8]} 9... Nxc5 {[%clk
0:02:55.7]} 10. Nbd2 {[%clk 0:02:53.7]} 10... O-O {[%clk 0:02:55.7]} 11. Nb3
{[%clk 0:02:54.4]} 11... Nce4 {[%clk 0:02:54.8]} 12. Be3 {[%clk 0:02:54.1]}
12... Re8 {[%clk 0:02:53.9]} 13. h3 {[%clk 0:02:53.3]} 13... a6 {[%clk
0:02:42.4]} 14. a4 {[%clk 0:02:52.3]} 14... b5 {[%clk 0:02:38.9]} 15. axb5
{[%clk 0:02:45.1]} 15... axb5 {[%clk 0:02:39.8]} 16. Nbd4 {[%clk 0:02:45]} 16...
Qd7 {[%clk 0:02:37.8]} 17. Qb3 {[%clk 0:02:42.2]} 17... Bc5 {[%clk 0:02:26.1]}
18. Rfd1 {[%clk 0:02:29.4]} 18... Rab8 {[%clk 0:02:18]} 19. Ra6 {[%clk
0:02:22.9]} 19... b4 {[%clk 0:02:14.4]} 20. c4 {[%clk 0:01:58.4]} 20... dxc4
{[%clk 0:02:12.3]} 21. Qxc4 {[%clk 0:01:58.2]} 21... Rec8 {[%clk 0:02:06.5]} 22.
Ne5 {[%clk 0:01:45.1]} 22... Qb7 {[%clk 0:02:05]} 23. Nec6 {[%clk 0:00:27.4]}
23... Ra8 {[%clk 0:02:03.4]} 24. Rxa8 {[%clk 0:00:26.5]} 24... Rxa8 {[%clk
0:01:58.7]} 25. f3 {[%clk 0:00:21.2]} 25... Bxd4 {[%clk 0:01:53.6]} 26. Nxd4
{[%clk 0:00:22.1]} 26... Nd6 {[%clk 0:01:45.7]} 27. Qc6 {[%clk 0:00:22.2]} 27...
Qxc6 {[%clk 0:01:43.2]} 28. Nxc6 {[%clk 0:00:23.1]} 28... Nf5 {[%clk 0:01:42.6]}
29. Bg5 {[%clk 0:00:21.4]} 29... Ne8 {[%clk 0:01:35.9]} 30. Nxb4 {[%clk
0:00:20.7]} 30... f6 {[%clk 0:01:36.5]} 31. Bf4 {[%clk 0:00:20]} 31... g5 {[%clk
0:01:33.3]} 32. Bh2 {[%clk 0:00:20.6]} 32... Kf7 {[%clk 0:01:19.6]} 33. g4
{[%clk 0:00:20.7]} 33... Nh4 {[%clk 0:01:18.9]} 34. Kf2 {[%clk 0:00:21.1]} 34...
Kg6 {[%clk 0:01:15]} 35. f4 {[%clk 0:00:20.7]} 35... gxf4 {[%clk 0:01:13.3]} 36.
Bxf4 {[%clk 0:00:21.6]} 36... Ng7 {[%clk 0:01:08.8]} 37. Kg3 {[%clk 0:00:21.5]}
37... Ne6 {[%clk 0:00:52.4]} 38. Be3 {[%clk 0:00:19.7]} 38... Ra4 {[%clk
0:00:43.3]} 39. Nd3 {[%clk 0:00:19.9]} 39... Ng7 {[%clk 0:00:38.3]} 40. Nf4+
{[%clk 0:00:17.9]} 40... Kf7 {[%clk 0:00:23.8]} 41. Rd7+ {[%clk 0:00:17.5]}
41... Kf8 {[%clk 0:00:23.7]} 42. Kxh4 {[%clk 0:00:14.8]} 42... h5 {[%clk
0:00:22.7]} 43. Bc5+ {[%clk 0:00:12.2]} 43... Kg8 {[%clk 0:00:22.9]} 44. Kg3
{[%clk 0:00:11.5]} 44... h4+ {[%clk 0:00:22.4]} 45. Kf3 {[%clk 0:00:11.3]} 45...
Rc4 {[%clk 0:00:23]} 46. b4 {[%clk 0:00:11.2]} 46... Rc3+ {[%clk 0:00:23.1]} 47.
Ke4 {[%clk 0:00:11.8]} 47... Rc4+ {[%clk 0:00:18.6]} 48. Ke3 {[%clk 0:00:10.5]}
48... Rc3+ {[%clk 0:00:15.3]} 49. Kd4 {[%clk 0:00:10.8]} 49... Rc1 {[%clk
0:00:15.6]} 50. Ke4 {[%clk 0:00:09.3]} 50... Re1+ {[%clk 0:00:15.1]} 51. Be3
{[%clk 0:00:10]} 51... Ne8 {[%clk 0:00:12.3]} 52. Nd5 {[%clk 0:00:09.7]} 52...
Rb1 {[%clk 0:00:09.8]} 53. Kd4 {[%clk 0:00:08.1]} 53... Ng7 {[%clk 0:00:07.3]}
54. Kc5 {[%clk 0:00:07.7]} 54... Ne6+ {[%clk 0:00:07.4]} 55. Kd6 {[%clk
0:00:08.3]} 55... Nf8 {[%clk 0:00:06.5]} 56. Nxf6+ {[%clk 0:00:08.6]} 56... Kh8
{[%clk 0:00:07.1]} 57. Rd8 {[%clk 0:00:06.7]} 57... Kg7 {[%clk 0:00:07]} 58.
Ne8+ {[%clk 0:00:06.4]} 58... Kf7 {[%clk 0:00:07.1]} 59. Bc5 {[%clk 0:00:06.4]}
59... Ne6 {[%clk 0:00:06.4]} 60. Rd7+ {[%clk 0:00:06.4]} 60... Kxe8 {[%clk
0:00:05.8]} 61. Re7+ {[%clk 0:00:05.2]} 61... Kd8 {[%clk 0:00:05.4]} 62. Rxe6
{[%clk 0:00:06.1]} 62... Rd1+ {[%clk 0:00:05.9]} 63. Kc6 {[%clk 0:00:06.3]}
63... Ra1 {[%clk 0:00:04.9]} 64. Rf6 {[%clk 0:00:06.6]} 64... Ra6+ {[%clk
0:00:05.3]} 65. Bb6+ {[%clk 0:00:06.3]} 65... Ke7 {[%clk 0:00:05.7]} 66. Rh6
{[%clk 0:00:06.6]} 66... Ra1 {[%clk 0:00:05.5]} 67. b5 {[%clk 0:00:07]} 67...
Rc1+ {[%clk 0:00:06.2]} 68. Bc5+ {[%clk 0:00:07.6]} 68... Kf7 {[%clk 0:00:06.3]}
69. b6 {[%clk 0:00:08.2]} 69... Kg7 {[%clk 0:00:07.2]} 70. Rd6 {[%clk
0:00:08.7]} 70... Rb1 {[%clk 0:00:07.8]} 71. b7 {[%clk 0:00:09.2]} 71... Kf7
{[%clk 0:00:08.7]} 72. Kc7 {[%clk 0:00:09.7]} 72... Ke7 {[%clk 0:00:08.9]} 73.
b8=Q {[%clk 0:00:10.2]} 73... Rxb8 {[%clk 0:00:08.3]} 74. Kxb8 {[%clk
0:00:11.1]} 1-0

[Event "Early-Titled-Tuesday-Blitz-March-05-2024"]
[Site "Chess.com"]
[Date "2024.03.05"]
[Round "1"]
[White "diamonds13"]
[Black "goldihouse"]
[Result "0-1"]
[WhiteElo "2374"]
[BlackElo "2674"]
[TimeControl "180+1"]
[EndTime "8:09:08 PST"]
[Termination "goldihouse won by resignation"]

1. d4 {[%clk 0:02:52.1]} 1... Nf6 {[%clk 0:02:59.7]} 2. c4 {[%clk 0:02:51.5]}
2... e6 {[%clk 0:02:59.6]} 3. Nc3 {[%clk 0:02:51.7]} 3... Bb4 {[%clk 0:03:00]}
4. e3 {[%clk 0:02:51.9]} 4... b6 {[%clk 0:02:57.6]} 5. Ne2 {[%clk 0:02:52]} 5...
c5 {[%clk 0:02:57.1]} 6. a3 {[%clk 0:02:51.9]} 6... Ba5 {[%clk 0:02:57.5]} 7.
Rb1 {[%clk 0:02:51.4]} 7... Na6 {[%clk 0:02:54.8]} 8. Bd2 {[%clk 0:02:51.3]}
8... O-O {[%clk 0:02:54]} 9. d5 {[%clk 0:02:49.7]} 9... Bb7 {[%clk 0:02:41.6]}
10. Nf4 {[%clk 0:02:34]} 10... Re8 {[%clk 0:02:35.6]} 11. Be2 {[%clk 0:02:32.8]}
11... Bxc3 {[%clk 0:02:26.4]} 12. Bxc3 {[%clk 0:02:32.1]} 12... e5 {[%clk
0:02:27.3]} 13. Nh3 {[%clk 0:02:22.9]} 13... Ne4 {[%clk 0:02:25.8]} 14. Qc2
{[%clk 0:02:12]} 14... Nxc3 {[%clk 0:02:24.7]} 15. Qxc3 {[%clk 0:02:12.3]} 15...
d6 {[%clk 0:02:10.3]} 16. O-O {[%clk 0:02:08.4]} 16... Bc8 {[%clk 0:02:10.3]}
17. e4 {[%clk 0:02:05.4]} 17... Qh4 {[%clk 0:02:10]} 18. Qg3 {[%clk 0:02:02.6]}
18... Qxe4 {[%clk 0:02:04.5]} 19. Bd3 {[%clk 0:01:59.5]} 19... Qg4 {[%clk
0:02:04.3]} 20. Qe3 {[%clk 0:01:55]} 20... f5 {[%clk 0:01:37.8]} 21. f4 {[%clk
0:01:51]} 21... Bd7 {[%clk 0:01:20.4]} 22. Ng5 {[%clk 0:01:49.4]} 22... exf4
{[%clk 0:01:14]} 23. Qxf4 {[%clk 0:01:46.8]} 23... Qxf4 {[%clk 0:01:13.7]} 24.
Rxf4 {[%clk 0:01:46.8]} 24... g6 {[%clk 0:01:14.6]} 25. Rh4 {[%clk 0:01:41.3]}
25... Re7 {[%clk 0:01:13.6]} 26. Rf1 {[%clk 0:01:36.7]} 26... Rae8 {[%clk
0:01:09.3]} 27. Rh3 {[%clk 0:01:31]} 27... Nc7 {[%clk 0:01:04.2]} 28. Rh6 {[%clk
0:01:15.7]} 28... b5 {[%clk 0:01:02.9]} 29. h4 {[%clk 0:01:15.1]} 29... bxc4
{[%clk 0:00:55]} 30. Bxc4 {[%clk 0:01:13.6]} 30... Rb8 {[%clk 0:00:30.9]} 31. b3
{[%clk 0:01:10.9]} 31... Ne8 {[%clk 0:00:28.2]} 32. h5 {[%clk 0:01:09.6]} 32...
Rg7 {[%clk 0:00:27.8]} 33. Ne6 {[%clk 0:01:01]} 33... Bxe6 {[%clk 0:00:27.8]}
34. dxe6 {[%clk 0:01:01.2]} 34... Kf8 {[%clk 0:00:28.7]} 35. hxg6 {[%clk
0:01:00.1]} 35... hxg6 {[%clk 0:00:28.6]} 36. Rh8+ {[%clk 0:00:50.9]} 36... Ke7
{[%clk 0:00:28.7]} 37. Bd5 {[%clk 0:00:48.4]} 37... Rd8 {[%clk 0:00:27.2]} 38.
Re1 {[%clk 0:00:45.9]} 38... Nf6 {[%clk 0:00:27]} 39. Rxd8 {[%clk 0:00:37.8]}
39... Kxd8 {[%clk 0:00:27.9]} 40. Bc4 {[%clk 0:00:38.2]} 40... d5 {[%clk
0:00:27]} 41. Bxd5 {[%clk 0:00:34.7]} 41... Nxd5 {[%clk 0:00:27]} 42. Rd1 {[%clk
0:00:35.3]} 42... Kc7 {[%clk 0:00:25.4]} 43. Rxd5 {[%clk 0:00:35.7]} 43... Kc6
{[%clk 0:00:25.9]} 44. Re5 {[%clk 0:00:34.8]} 44... Re7 {[%clk 0:00:25.8]} 45.
b4 {[%clk 0:00:32.6]} 45... cxb4 {[%clk 0:00:25.5]} 46. axb4 {[%clk 0:00:32.8]}
46... Kd6 {[%clk 0:00:26.4]} 47. Ra5 {[%clk 0:00:30.7]} 47... Kxe6 {[%clk
0:00:27.3]} 48. Ra6+ {[%clk 0:00:29.7]} 48... Kf7 {[%clk 0:00:27.5]} 49. Kf2
{[%clk 0:00:30]} 49... Rb7 {[%clk 0:00:26.5]} 50. Kf3 {[%clk 0:00:28.7]} 50...
Kg7 {[%clk 0:00:26.5]} 51. g3 {[%clk 0:00:26.1]} 51... Kh6 {[%clk 0:00:26.3]}
52. Kg2 {[%clk 0:00:25.8]} 52... Kg5 {[%clk 0:00:26.4]} 53. Kh3 {[%clk
0:00:26.1]} 53... Kh5 {[%clk 0:00:26.2]} 54. Ra4 {[%clk 0:00:24.8]} 54... Kg5
{[%clk 0:00:24.9]} 55. Kh2 {[%clk 0:00:19.7]} 55... Kg4 {[%clk 0:00:22.9]} 56.
Ra6 {[%clk 0:00:18]} 56... g5 {[%clk 0:00:22.2]} 57. Ra4 {[%clk 0:00:17.6]}
57... Kf3 {[%clk 0:00:20.1]} 58. Ra3+ {[%clk 0:00:16]} 58... Ke4 {[%clk
0:00:20.2]} 59. Ra4 {[%clk 0:00:13.1]} 59... Kf3 {[%clk 0:00:19]} 60. Ra3+
{[%clk 0:00:12.9]} 60... Kg4 {[%clk 0:00:19.4]} 61. Ra4 {[%clk 0:00:13.2]} 61...
Kh5 {[%clk 0:00:20.3]} 62. Kh3 {[%clk 0:00:13.1]} 62... Rh7 {[%clk 0:00:18.6]}
63. g4+ {[%clk 0:00:12.5]} 63... Kg6+ {[%clk 0:00:17.7]} 64. Kg3 {[%clk
0:00:12]} 64... f4+ {[%clk 0:00:17.7]} 65. Kf3 {[%clk 0:00:12.4]} 65... Rh3+
{[%clk 0:00:17.8]} 66. Kf2 {[%clk 0:00:11.4]} 66... Rb3 {[%clk 0:00:18.7]} 67.
Ra6+ {[%clk 0:00:11.1]} 67... Kf7 {[%clk 0:00:18.9]} 68. Rxa7+ {[%clk
0:00:11.8]} 68... Kf6 {[%clk 0:00:19.8]} 69. Rb7 {[%clk 0:00:11.8]} 69... Ke5
{[%clk 0:00:19.5]} 70. Rb5+ {[%clk 0:00:11.9]} 70... Ke4 {[%clk 0:00:19.8]} 71.
Rxg5 {[%clk 0:00:12.6]} 71... Rb2+ {[%clk 0:00:20.2]} 72. Ke1 {[%clk 0:00:12.1]}
72... Rxb4 {[%clk 0:00:19.7]} 73. Rg8 {[%clk 0:00:10.1]} 73... Ke3 {[%clk
0:00:18.8]} 74. Re8+ {[%clk 0:00:09.8]} 74... Kf3 {[%clk 0:00:19.4]} 75. g5
{[%clk 0:00:10.3]} 75... Rb1+ {[%clk 0:00:19.9]} 76. Kd2 {[%clk 0:00:10.3]}
76... Rg1 {[%clk 0:00:20.8]} 77. Rg8 {[%clk 0:00:09.9]} 77... Kf2 {[%clk
0:00:19.2]} 78. g6 {[%clk 0:00:10.5]} 78... f3 {[%clk 0:00:20]} 79. g7 {[%clk
0:00:10.9]} 79... Rg6 {[%clk 0:00:20.4]} 80. Kc2 {[%clk 0:00:09.1]} 80... Kg2
{[%clk 0:00:20.2]} 81. Kd2 {[%clk 0:00:07.9]} 81... f2 {[%clk 0:00:20.5]} 82.
Rf8 {[%clk 0:00:05.2]} 82... Rxg7 {[%clk 0:00:16]} 0-1

[Event "Early-Titled-Tuesday-Blitz-March-05-2024"]
[Site "Chess.com"]
[Date "2024.03.05"]
[Round "1"]
[White "GreenPeach24"]
[Black "AradNazari"]
[Result "0-1"]
[WhiteElo "2463"]
[BlackElo "2847"]
[TimeControl "180+1"]
[EndTime "8:09:30 PST"]
[Termination "AradNazari won on time"]

1. d4 {[%clk 0:03:00.9]} 1... Nf6 {[%clk 0:02:53.3]} 2. Nf3 {[%clk 0:02:57.3]}
2... c6 {[%clk 0:02:53.6]} 3. Bf4 {[%clk 0:02:56.2]} 3... Na6 {[%clk 0:02:52.9]}
4. e3 {[%clk 0:02:55.7]} 4... Nc7 {[%clk 0:02:52.7]} 5. c4 {[%clk 0:02:55.3]}
5... d5 {[%clk 0:02:51.7]} 6. Nc3 {[%clk 0:02:54.6]} 6... h6 {[%clk 0:02:50.2]}
7. h3 {[%clk 0:02:53.6]} 7... Bf5 {[%clk 0:02:50.4]} 8. Qb3 {[%clk 0:02:52.6]}
8... b6 {[%clk 0:02:31.6]} 9. Rc1 {[%clk 0:02:49]} 9... Rc8 {[%clk 0:02:27.1]}
10. Qa4 {[%clk 0:02:46.1]} 10... Qd7 {[%clk 0:02:24.6]} 11. Qxa7 {[%clk
0:02:45.5]} 11... dxc4 {[%clk 0:02:16.9]} 12. Bxc4 {[%clk 0:02:41.1]} 12... b5
{[%clk 0:02:17.1]} 13. Ne5 {[%clk 0:02:40.2]} 13... bxc4 {[%clk 0:02:10.1]} 14.
Nxd7 {[%clk 0:02:39.8]} 14... Kxd7 {[%clk 0:02:10.7]} 15. Na4 {[%clk 0:02:36.2]}
15... Nd5 {[%clk 0:02:07.5]} 16. Nc5+ {[%clk 0:02:30.1]} 16... Kd8 {[%clk
0:02:07.3]} 17. Rxc4 {[%clk 0:02:22.4]} 17... Nxf4 {[%clk 0:02:01.1]} 18. exf4
{[%clk 0:02:22.8]} 18... e6 {[%clk 0:02:01.7]} 19. Nb7+ {[%clk 0:02:19.9]} 19...
Kd7 {[%clk 0:02:00]} 20. Na5 {[%clk 0:02:08.8]} 20... Be4 {[%clk 0:01:59.7]} 21.
Qb6 {[%clk 0:02:01.7]} 21... Nd5 {[%clk 0:01:55.1]} 22. Qb7+ {[%clk 0:02:00.9]}
22... Rc7 {[%clk 0:01:55.6]} 23. Qb3 {[%clk 0:01:46.6]} 23... Bxg2 {[%clk
0:01:54.8]} 24. Rg1 {[%clk 0:01:45.8]} 24... Be4 {[%clk 0:01:55]} 25. a3 {[%clk
0:01:32.7]} 25... g6 {[%clk 0:01:47.4]} 26. Nb7 {[%clk 0:01:18.9]} 26... Nxf4
{[%clk 0:01:34.7]} 27. Ra4 {[%clk 0:00:52.7]} 27... Bd5 {[%clk 0:01:21.3]} 28.
Qb6 {[%clk 0:00:47.3]} 28... Be7 {[%clk 0:01:15.5]} 29. Ra7 {[%clk 0:00:45.4]}
29... Rhc8 {[%clk 0:01:15.3]} 30. Kd2 {[%clk 0:00:32.7]} 30... Ke8 {[%clk
0:01:11.3]} 31. Nc5 {[%clk 0:00:19.4]} 31... Rxa7 {[%clk 0:01:01.8]} 32. Qxa7
{[%clk 0:00:20.3]} 32... Kf8 {[%clk 0:01:02.5]} 33. b4 {[%clk 0:00:16.8]} 33...
Rd8 {[%clk 0:00:58.5]} 34. Nd7+ {[%clk 0:00:16.5]} 34... Kg7 {[%clk 0:00:52.6]}
35. Ne5 {[%clk 0:00:16.7]} 35... Kf8 {[%clk 0:00:48.2]} 36. Ke3 {[%clk
0:00:13.6]} 36... g5 {[%clk 0:00:48.2]} 37. h4 {[%clk 0:00:12.9]} 37... Ng2+
{[%clk 0:00:40.1]} 38. Ke2 {[%clk 0:00:11.5]} 38... gxh4 {[%clk 0:00:39.4]} 39.
f3 {[%clk 0:00:09.7]} 39... h3 {[%clk 0:00:39.9]} 40. Kf2 {[%clk 0:00:09.4]}
40... Nf4 {[%clk 0:00:31.5]} 41. Rh1 {[%clk 0:00:05.9]} 41... h5 {[%clk
0:00:27.1]} 42. Kg3 {[%clk 0:00:06.1]} 42... Ng6 {[%clk 0:00:17.6]} 43. Nxg6+
{[%clk 0:00:05.6]} 43... fxg6 {[%clk 0:00:18.5]} 44. Kxh3 {[%clk 0:00:06.1]}
44... g5 {[%clk 0:00:18.2]} 45. Kg3 {[%clk 0:00:04.8]} 45... Bd6+ {[%clk
0:00:18.5]} 46. Kg2 {[%clk 0:00:05.1]} 46... h4 {[%clk 0:00:19.2]} 47. Kf2
{[%clk 0:00:05]} 47... Bg3+ {[%clk 0:00:18.5]} 48. Ke3 {[%clk 0:00:04.8]} 48...
g4 {[%clk 0:00:18.8]} 49. Qh7 {[%clk 0:00:04.2]} 49... Bxf3 {[%clk 0:00:18.3]}
50. Rxh4 {[%clk 0:00:04.5]} 50... Bxh4 {[%clk 0:00:18.3]} 51. Qxh4 {[%clk
0:00:05.4]} 51... Rd5 {[%clk 0:00:19.1]} 52. Qf6+ {[%clk 0:00:05.6]} 52... Ke8
{[%clk 0:00:18.4]} 53. Qxe6+ {[%clk 0:00:05.9]} 53... Kd8 {[%clk 0:00:19.2]} 54.
Qf6+ {[%clk 0:00:06.5]} 54... Kc7 {[%clk 0:00:19.5]} 55. Qf4+ {[%clk 0:00:06.5]}
55... Kb6 {[%clk 0:00:19.1]} 56. Qb8+ {[%clk 0:00:06.7]} 56... Ka6 {[%clk
0:00:19.6]} 57. a4 {[%clk 0:00:07.3]} 57... Rd7 {[%clk 0:00:17.5]} 58. Qc8+
{[%clk 0:00:07.5]} 58... Rb7 {[%clk 0:00:16.7]} 59. Kf4 {[%clk 0:00:06.7]} 59...
Ka7 {[%clk 0:00:16.8]} 60. Ke5 {[%clk 0:00:06.7]} 60... Rxb4 {[%clk 0:00:17.2]}
61. Kd6 {[%clk 0:00:06.9]} 61... Rxd4+ {[%clk 0:00:17.3]} 62. Kc7 {[%clk
0:00:06.5]} 62... Rb4 {[%clk 0:00:17.4]} 63. a5 {[%clk 0:00:05]} 63... c5 {[%clk
0:00:17.4]} 64. Qf5 {[%clk 0:00:03.6]} 64... Rb7+ {[%clk 0:00:14.7]} 65. Kd6
{[%clk 0:00:03.8]} 65... Rb5 {[%clk 0:00:15.4]} 66. Qd7+ {[%clk 0:00:03.6]}
66... Ka6 {[%clk 0:00:15.5]} 67. Qc8+ {[%clk 0:00:03.2]} 67... Kxa5 {[%clk
0:00:16.1]} 68. Qc7+ {[%clk 0:00:03.6]} 68... Kb4 {[%clk 0:00:16.6]} 69. Qg7
{[%clk 0:00:03.4]} 69... c4 {[%clk 0:00:16.5]} 70. Qb2+ {[%clk 0:00:03.2]} 70...
Ka5 {[%clk 0:00:16.3]} 71. Qa3+ {[%clk 0:00:03.2]} 71... Kb6 {[%clk 0:00:16.2]}
72. Qe3+ {[%clk 0:00:03.8]} 72... Kb7 {[%clk 0:00:13.7]} 73. Qe7+ {[%clk
0:00:03.9]} 73... Ka6 {[%clk 0:00:14.4]} 74. Qe3 {[%clk 0:00:04]} 74... Rb6+
{[%clk 0:00:13]} 75. Kc5 {[%clk 0:00:04.6]} 75... Rc6+ {[%clk 0:00:13.7]} 76.
Kb4 {[%clk 0:00:04.9]} 76... c3 {[%clk 0:00:13.5]} 77. Qd3+ {[%clk 0:00:05]}
77... Ka7 {[%clk 0:00:14.1]} 78. Qd4+ {[%clk 0:00:05.1]} 78... Kb7 {[%clk
0:00:13.9]} 79. Qd7+ {[%clk 0:00:04.7]} 79... Ka6 {[%clk 0:00:11.9]} 80. Qd3+
{[%clk 0:00:04]} 80... Ka7 {[%clk 0:00:12.3]} 81. Qd7+ {[%clk 0:00:04.1]} 81...
Kb8 {[%clk 0:00:12.6]} 82. Qd8+ {[%clk 0:00:04.3]} 82... Kb7 {[%clk 0:00:13]}
83. Qd7+ {[%clk 0:00:04.6]} 83... Rc7 {[%clk 0:00:13.8]} 84. Qb5+ {[%clk
0:00:04.8]} 84... Ka8 {[%clk 0:00:13.4]} 85. Qa6+ {[%clk 0:00:04.1]} 85... Kb8
{[%clk 0:00:14.1]} 86. Qd6 {[%clk 0:00:02]} 86... c2 {[%clk 0:00:14.2]} 87. Qd8+
{[%clk 0:00:02.5]} 87... Kb7 {[%clk 0:00:14.3]} 0-1